[Event "*** Titled Tuesday 3|2 Blitz"]
[Site "Chess.com"]
[Date "2015.10.06"]
[Round "2"]
[White "Mugzyyy"]
[Black "Ar4uha"]
[Result "1-0"]
[WhiteElo "2561"]
[BlackElo "2399"]
[TimeControl "180+2"]
[EndTime "11:22:33 PDT"]
[Termination "Mugzyyy won by resignation"]

1. d4 {[%clk 0:03:01.9]} 1... Nf6 {[%clk 0:03:00]} 2. c4 {[%clk 0:03:02.8]} 2...
e6 {[%clk 0:03:01.1]} 3. Nc3 {[%clk 0:03:03.8]} 3... c5 {[%clk 0:03:01.8]} 4. d5
{[%clk 0:03:03.3]} 4... exd5 {[%clk 0:03:03.7]} 5. cxd5 {[%clk 0:03:04.7]} 5...
d6 {[%clk 0:03:04.5]} 6. e4 {[%clk 0:03:06.1]} 6... g6 {[%clk 0:03:05.6]} 7. f4
{[%clk 0:03:07.7]} 7... Bg7 {[%clk 0:03:01.6]} 8. Bb5+ {[%clk 0:03:08.8]} 8...
Nfd7 {[%clk 0:03:02.1]} 9. Nf3 {[%clk 0:03:10]} 9... O-O {[%clk 0:03:02.4]} 10.
O-O {[%clk 0:03:10.7]} 10... Na6 {[%clk 0:03:01.7]} 11. Kh1 {[%clk 0:02:53.1]}
11... Nf6 {[%clk 0:02:58.5]} 12. e5 {[%clk 0:02:43.5]} 12... Nh5 {[%clk
0:02:24.2]} 13. Bxa6 {[%clk 0:02:22.2]} 13... bxa6 {[%clk 0:02:24.3]} 14. Ne4
{[%clk 0:02:22.5]} 14... dxe5 {[%clk 0:02:19.8]} 15. fxe5 {[%clk 0:02:23.3]}
15... Bg4 {[%clk 0:02:18.3]} 16. Bg5 {[%clk 0:02:21.8]} 16... Qe8 {[%clk
0:02:08.6]} 17. Nf6+ {[%clk 0:02:12.8]} 17... Bxf6 {[%clk 0:01:59.5]} 18. exf6
{[%clk 0:02:12.5]} 18... Qe4 {[%clk 0:01:57]} 19. Qd2 {[%clk 0:02:09.4]} 19...
Rad8 {[%clk 0:01:52.1]} 20. Rad1 {[%clk 0:01:55]} 20... Rd6 {[%clk 0:01:36.5]}
21. Qe3 {[%clk 0:01:25.9]} 21... Qxe3 {[%clk 0:01:20.7]} 22. Bxe3 {[%clk
0:01:26.9]} 22... Rfd8 {[%clk 0:01:22.3]} 23. Bxc5 {[%clk 0:01:27.1]} 23... Rxd5
{[%clk 0:01:23.6]} 24. Rxd5 {[%clk 0:01:28.7]} 24... Rxd5 {[%clk 0:01:25.5]} 25.
Be7 {[%clk 0:01:29.4]} 25... Bxf3 {[%clk 0:01:17.2]} 26. gxf3 {[%clk 0:01:30.4]}
26... Rd2 {[%clk 0:01:18.4]} 27. Rc1 {[%clk 0:01:28.6]} 27... h6 {[%clk
0:01:17]} 28. Rc8+ {[%clk 0:01:25.9]} 28... Kh7 {[%clk 0:01:18.1]} 29. Rf8
{[%clk 0:01:26.9]} 29... g5 {[%clk 0:01:18.3]} 30. Rxf7+ {[%clk 0:01:28.4]}
30... Kg6 {[%clk 0:01:19.9]} 31. Rf8 {[%clk 0:01:30]} 31... Nf4 {[%clk
0:01:19.6]} 32. Kg1 {[%clk 0:01:25]} 32... Rxb2 {[%clk 0:01:00.6]} 33. Rg8+
{[%clk 0:01:09.2]} 33... Kf7 {[%clk 0:00:58.1]} 34. Rg7+ {[%clk 0:01:10.6]}
34... Ke6 {[%clk 0:00:59.7]} 35. Bd8 {[%clk 0:01:07.6]} 35... Rb8 {[%clk
0:00:50]} 36. Be7 {[%clk 0:00:41.5]} 36... Rb2 {[%clk 0:00:51.1]} 37. Rh7 {[%clk
0:00:25.6]} 37... h5 {[%clk 0:00:46.7]} 38. Rg7 {[%clk 0:00:16.1]} 38... a5
{[%clk 0:00:46.8]} 39. Kf1 {[%clk 0:00:16.2]} 39... Nd5 {[%clk 0:00:41.2]} 40.
Rxg5 {[%clk 0:00:14.2]} 40... Nxf6 {[%clk 0:00:31.6]} 41. Bd8 {[%clk 0:00:15.6]}
41... Nd5 {[%clk 0:00:28.6]} 42. a4 {[%clk 0:00:13.5]} 42... Rxh2 {[%clk
0:00:28.4]} 43. Bxa5 {[%clk 0:00:13.7]} 43... h4 {[%clk 0:00:27.7]} 44. Be1
{[%clk 0:00:13.6]} 44... h3 {[%clk 0:00:28.7]} 45. Bg3 {[%clk 0:00:14.5]} 45...
Ra2 {[%clk 0:00:29.7]} 46. Re5+ {[%clk 0:00:15]} 46... Kf6 {[%clk 0:00:23.3]}
47. Rxd5 {[%clk 0:00:16.1]} 47... Ra1+ {[%clk 0:00:19.2]} 48. Be1 {[%clk
0:00:16.3]} 48... Rxa4 {[%clk 0:00:18.5]} 49. Rh5 {[%clk 0:00:17.3]} 49... Ra3
{[%clk 0:00:19.4]} 50. Rxh3 {[%clk 0:00:18.5]} 50... Kf5 {[%clk 0:00:20.9]} 51.
Kg2 {[%clk 0:00:19.7]} 51... Ra1 {[%clk 0:00:21.6]} 52. Bf2 {[%clk 0:00:20.6]}
52... a5 {[%clk 0:00:23.3]} 53. Rh5+ {[%clk 0:00:20.1]} 53... Kg6 {[%clk
0:00:24.9]} 54. Rb5 {[%clk 0:00:21]} 54... a4 {[%clk 0:00:26.8]} 55. Ra5 {[%clk
0:00:22.1]} 55... Kf7 {[%clk 0:00:28.3]} 56. f4 {[%clk 0:00:23.4]} 56... Ke6
{[%clk 0:00:29.4]} 57. f5+ {[%clk 0:00:23.8]} 57... Kd6 {[%clk 0:00:30.9]} 58.
f6 {[%clk 0:00:22.2]} 58... Ke6 {[%clk 0:00:31.7]} 59. Ra6+ {[%clk 0:00:23.8]}
59... Kf7 {[%clk 0:00:32.9]} 60. Ra7+ {[%clk 0:00:25]} 60... Kg6 {[%clk
0:00:33.8]} 61. f7 {[%clk 0:00:26.2]} 1-0

[Event "*** Titled Tuesday 3|2 Blitz"]
[Site "Chess.com"]
[Date "2015.10.06"]
[Round "2"]
[White "Konavets"]
[Black "gmjlh"]
[Result "0-1"]
[WhiteElo "2481"]
[BlackElo "2617"]
[TimeControl "180+2"]
[EndTime "11:22:56 PDT"]
[Termination "gmjlh won by resignation"]

1. e4 {[%clk 0:03:01.9]} 1... e5 {[%clk 0:03:00.7]} 2. Nf3 {[%clk 0:03:02.4]}
2... Nc6 {[%clk 0:03:01.8]} 3. Bb5 {[%clk 0:03:02.8]} 3... Nf6 {[%clk 0:03:03]}
4. Qe2 {[%clk 0:03:00.3]} 4... Bc5 {[%clk 0:03:02.9]} 5. O-O {[%clk 0:03:01.4]}
5... O-O {[%clk 0:03:03.1]} 6. c3 {[%clk 0:03:03]} 6... Re8 {[%clk 0:03:02.2]}
7. Rd1 {[%clk 0:03:03.1]} 7... a6 {[%clk 0:03:01.8]} 8. Ba4 {[%clk 0:03:03.9]}
8... d5 {[%clk 0:02:57.2]} 9. d3 {[%clk 0:03:04.9]} 9... h6 {[%clk 0:02:53.8]}
10. h3 {[%clk 0:03:05.4]} 10... b5 {[%clk 0:02:46.6]} 11. Bc2 {[%clk 0:03:05]}
11... d4 {[%clk 0:02:47.4]} 12. Nbd2 {[%clk 0:03:04.3]} 12... Bb6 {[%clk
0:02:37.4]} 13. Nf1 {[%clk 0:03:04.1]} 13... a5 {[%clk 0:02:32.2]} 14. Ng3
{[%clk 0:03:05]} 14... Qe7 {[%clk 0:02:24.1]} 15. a4 {[%clk 0:03:04.3]} 15... b4
{[%clk 0:02:24.5]} 16. cxd4 {[%clk 0:02:22.4]} 16... Bxd4 {[%clk 0:02:26.4]} 17.
Nh4 {[%clk 0:02:21.1]} 17... g6 {[%clk 0:02:14.1]} 18. Nf3 {[%clk 0:02:06.9]}
18... Kg7 {[%clk 0:02:10.4]} 19. Qd2 {[%clk 0:01:48.3]} 19... Rh8 {[%clk
0:02:10]} 20. Bb3 {[%clk 0:01:47.3]} 20... Be6 {[%clk 0:02:10.6]} 21. Bxe6
{[%clk 0:01:47.3]} 21... Qxe6 {[%clk 0:02:12.5]} 22. Qc2 {[%clk 0:01:48]} 22...
b3 {[%clk 0:02:02.7]} 23. Qe2 {[%clk 0:01:49.2]} 23... Nb4 {[%clk 0:01:39.7]}
24. Nxd4 {[%clk 0:01:38.1]} 24... exd4 {[%clk 0:01:41.6]} 25. Bf4 {[%clk
0:01:39.6]} 25... Nc2 {[%clk 0:01:40.6]} 26. Rac1 {[%clk 0:01:40.8]} 26... c5
{[%clk 0:01:41.6]} 27. Nf1 {[%clk 0:01:33.3]} 27... Nd5 {[%clk 0:01:36.3]} 28.
Bh2 {[%clk 0:01:21.4]} 28... Ndb4 {[%clk 0:01:34]} 29. Nd2 {[%clk 0:01:22.5]}
29... Rhe8 {[%clk 0:01:31]} 30. Nc4 {[%clk 0:01:22.7]} 30... Qc6 {[%clk
0:01:26.2]} 31. Qf3 {[%clk 0:01:17.8]} 31... Re6 {[%clk 0:01:24]} 32. Be5+
{[%clk 0:01:12.2]} 32... Kg8 {[%clk 0:01:25.1]} 33. Qg3 {[%clk 0:01:10.6]} 33...
Qxa4 {[%clk 0:00:58.1]} 34. f4 {[%clk 0:01:11.4]} 34... Nxd3 {[%clk 0:00:59.1]}
35. Qxd3 {[%clk 0:01:12.1]} 35... Nb4 {[%clk 0:00:51.2]} 36. Qg3 {[%clk
0:01:09.4]} 36... Nc2 {[%clk 0:00:51.7]} 37. Qd3 {[%clk 0:00:46.4]} 37... Nb4
{[%clk 0:00:52.2]} 38. Qf1 {[%clk 0:00:47.6]} 38... Nc2 {[%clk 0:00:53]} 39. f5
{[%clk 0:00:49.1]} 39... Rc6 {[%clk 0:00:52.4]} 40. Nd6 {[%clk 0:00:35.7]} 40...
Rf8 {[%clk 0:00:53.5]} 41. Rd3 {[%clk 0:00:27.2]} 41... Ne3 {[%clk 0:00:46.2]}
42. Rxe3 {[%clk 0:00:23.5]} 42... dxe3 {[%clk 0:00:46.5]} 43. Qf4 {[%clk
0:00:24.7]} 43... g5 {[%clk 0:00:37]} 44. Qxe3 {[%clk 0:00:25.5]} 44... f6
{[%clk 0:00:37.1]} 45. Bh2 {[%clk 0:00:26.6]} 45... Rd8 {[%clk 0:00:32.4]} 46.
Rd1 {[%clk 0:00:17.5]} 46... Rc7 {[%clk 0:00:07.9]} 47. e5 {[%clk 0:00:16.6]}
47... Re7 {[%clk 0:00:09.2]} 48. e6 {[%clk 0:00:16.2]} 48... Qb4 {[%clk
0:00:10.8]} 49. Rd5 {[%clk 0:00:13.8]} 49... a4 {[%clk 0:00:12.1]} 50. Bg3
{[%clk 0:00:13.5]} 50... a3 {[%clk 0:00:13.3]} 51. bxa3 {[%clk 0:00:14.5]} 51...
Qxa3 {[%clk 0:00:15.1]} 52. Rd1 {[%clk 0:00:13.8]} 52... Qb4 {[%clk 0:00:16.2]}
53. Qf3 {[%clk 0:00:10.9]} 53... b2 {[%clk 0:00:15.3]} 54. Rb1 {[%clk
0:00:11.9]} 54... c4 {[%clk 0:00:16.7]} 55. Qh5 {[%clk 0:00:12.7]} 55... c3
{[%clk 0:00:18.1]} 56. Qg6+ {[%clk 0:00:13.7]} 56... Rg7 {[%clk 0:00:19.4]} 57.
Qxf6 {[%clk 0:00:14.9]} 57... Rf8 {[%clk 0:00:20.7]} 58. e7 {[%clk 0:00:11.6]}
58... Rxf6 {[%clk 0:00:20.4]} 59. e8=Q+ {[%clk 0:00:13.1]} 59... Kh7 {[%clk
0:00:22]} 60. Ne4 {[%clk 0:00:14]} 60... Rxf5 {[%clk 0:00:21.6]} 61. Qe6 {[%clk
0:00:15.2]} 61... Rgf7 {[%clk 0:00:21.7]} 62. Kh2 {[%clk 0:00:07]} 62... c2
{[%clk 0:00:22.6]} 63. Nd6 {[%clk 0:00:07.6]} 63... cxb1=Q {[%clk 0:00:22.8]}
64. Nxf7 {[%clk 0:00:09]} 64... Qf8 {[%clk 0:00:22]} 65. Nd6 {[%clk 0:00:06.9]}
65... Rf1 {[%clk 0:00:20.5]} 66. Qe4+ {[%clk 0:00:08.1]} 0-1

[Event "*** Titled Tuesday 3|2 Blitz"]
[Site "Chess.com"]
[Date "2015.10.06"]
[Round "2"]
[White "AungTZ"]
[Black "Makalexa"]
[Result "1-0"]
[WhiteElo "2077"]
[BlackElo "1825"]
[TimeControl "180+2"]
[EndTime "11:23:03 PDT"]
[Termination "AungTZ won by checkmate"]

1. e4 {[%clk 0:02:58.6]} 1... e5 {[%clk 0:02:57.8]} 2. Nf3 {[%clk 0:02:59.2]}
2... Nc6 {[%clk 0:02:57.3]} 3. d4 {[%clk 0:03:01.1]} 3... exd4 {[%clk
0:02:57.6]} 4. Nxd4 {[%clk 0:03:02.3]} 4... Bc5 {[%clk 0:02:57.9]} 5. Nb3 {[%clk
0:03:02.3]} 5... Bb4+ {[%clk 0:02:57.1]} 6. c3 {[%clk 0:03:00.1]} 6... Be7
{[%clk 0:02:57.2]} 7. Be2 {[%clk 0:03:01.2]} 7... Nf6 {[%clk 0:02:56.4]} 8. f3
{[%clk 0:03:02]} 8... d5 {[%clk 0:02:57.1]} 9. exd5 {[%clk 0:02:59.7]} 9... Qxd5
{[%clk 0:02:56.4]} 10. O-O {[%clk 0:03:01.1]} 10... O-O {[%clk 0:02:51.4]} 11.
Qe1 {[%clk 0:02:59.5]} 11... a6 {[%clk 0:02:46.7]} 12. Be3 {[%clk 0:02:57.6]}
12... Bf5 {[%clk 0:02:46.6]} 13. N1d2 {[%clk 0:02:57.5]} 13... Bd3 {[%clk
0:02:43.4]} 14. Bxd3 {[%clk 0:02:55.4]} 14... Qxd3 {[%clk 0:02:44.1]} 15. Qf2
{[%clk 0:02:57.3]} 15... Qg6 {[%clk 0:02:44.3]} 16. Rfe1 {[%clk 0:02:55.8]}
16... Rfe8 {[%clk 0:02:44.2]} 17. Bc5 {[%clk 0:02:48.9]} 17... b6 {[%clk
0:02:39.6]} 18. Bxe7 {[%clk 0:02:47.7]} 18... Nxe7 {[%clk 0:02:41.1]} 19. Qf1
{[%clk 0:02:38.8]} 19... Nh5 {[%clk 0:02:28.7]} 20. Re4 {[%clk 0:02:35.9]} 20...
Nf5 {[%clk 0:02:26.8]} 21. Rae1 {[%clk 0:02:34.2]} 21... Nd6 {[%clk 0:02:23.1]}
22. Rxe8+ {[%clk 0:02:33.4]} 22... Rxe8 {[%clk 0:02:24.6]} 23. Rxe8+ {[%clk
0:02:33.3]} 23... Nxe8 {[%clk 0:02:25.9]} 24. Qxa6 {[%clk 0:02:30.3]} 24... Nf4
{[%clk 0:02:24.6]} 25. Qf1 {[%clk 0:02:31.7]} 25... Nd6 {[%clk 0:02:21.6]} 26.
Kh1 {[%clk 0:02:31]} 26... h5 {[%clk 0:02:22]} 27. g3 {[%clk 0:02:30.7]} 27...
Nd3 {[%clk 0:02:21]} 28. f4 {[%clk 0:02:19.1]} 28... Nf5 {[%clk 0:02:21.3]} 29.
Qxd3 {[%clk 0:02:16.9]} 29... h4 {[%clk 0:02:13]} 30. Qf3 {[%clk 0:02:08.2]}
30... h3 {[%clk 0:02:05.5]} 31. g4 {[%clk 0:02:00.7]} 31... Nh6 {[%clk
0:01:48.4]} 32. g5 {[%clk 0:02:00.5]} 32... Nf5 {[%clk 0:01:28.3]} 33. Qxh3
{[%clk 0:02:01]} 33... Qe6 {[%clk 0:01:25.6]} 34. Qf3 {[%clk 0:01:43.4]} 34...
Qe1+ {[%clk 0:01:11.1]} 35. Qf1 {[%clk 0:01:44.5]} 35... Qh4 {[%clk 0:01:09.3]}
36. Kg1 {[%clk 0:01:30.4]} 36... Ne3 {[%clk 0:01:05.8]} 37. Qf2 {[%clk 0:01:19]}
37... Qg4+ {[%clk 0:00:52.4]} 38. Qg3 {[%clk 0:01:20.1]} 38... Qd1+ {[%clk
0:00:48.7]} 39. Kf2 {[%clk 0:01:15.5]} 39... Ng4+ {[%clk 0:00:41.8]} 40. Kg2
{[%clk 0:01:16.4]} 40... Qe2+ {[%clk 0:00:42.6]} 41. Kg1 {[%clk 0:01:13.2]}
41... Ne3 {[%clk 0:00:43.1]} 42. Qf3 {[%clk 0:01:07.1]} 42... Qe1+ {[%clk
0:00:41.5]} 43. Nf1 {[%clk 0:01:07.1]} 43... Nf5 {[%clk 0:00:26.2]} 44. Nd2
{[%clk 0:01:04.5]} 44... g6 {[%clk 0:00:24.3]} 45. Qf2 {[%clk 0:01:03.2]} 45...
Qa1 {[%clk 0:00:22.1]} 46. Nf3 {[%clk 0:00:58.8]} 46... Qxa2 {[%clk 0:00:21.5]}
47. Ne5 {[%clk 0:00:59.9]} 47... Qb1 {[%clk 0:00:19.3]} 48. Ng4 {[%clk 0:00:58]}
48... Kg7 {[%clk 0:00:18.7]} 49. Ne3 {[%clk 0:00:58.7]} 49... Nxe3 {[%clk
0:00:17.3]} 50. Qxe3 {[%clk 0:00:59.9]} 50... Qxb2 {[%clk 0:00:18.7]} 51. Qe5+
{[%clk 0:01:00.2]} 51... Kg8 {[%clk 0:00:19.1]} 52. Qxc7 {[%clk 0:01:01.3]}
52... b5 {[%clk 0:00:19.7]} 53. Qe5 {[%clk 0:01:01.4]} 53... b4 {[%clk
0:00:20.3]} 54. cxb4 {[%clk 0:01:01.3]} 54... Qxb4 {[%clk 0:00:21.5]} 55. Qe3
{[%clk 0:01:01.3]} 55... Kg7 {[%clk 0:00:21.2]} 56. Kg2 {[%clk 0:00:55.2]} 56...
Qb1 {[%clk 0:00:20.2]} 57. Qf2 {[%clk 0:00:53.5]} 57... Qf5 {[%clk 0:00:20.5]}
58. Ne3 {[%clk 0:00:53.4]} 58... Qe4+ {[%clk 0:00:20.1]} 59. Qf3 {[%clk
0:00:54.5]} 59... Qa4 {[%clk 0:00:21]} 60. Kg3 {[%clk 0:00:55.3]} 60... Qa1
{[%clk 0:00:19.1]} 61. Ng2 {[%clk 0:00:56.3]} 61... Qb2 {[%clk 0:00:17.9]} 62.
h4 {[%clk 0:00:57.3]} 62... f6 {[%clk 0:00:16.5]} 63. Ne3 {[%clk 0:00:56.4]}
63... fxg5 {[%clk 0:00:15]} 64. fxg5 {[%clk 0:00:56.6]} 64... Qb1 {[%clk
0:00:13.1]} 65. Qf6+ {[%clk 0:00:56.6]} 65... Kg8 {[%clk 0:00:14.1]} 66. Qf2
{[%clk 0:00:48.9]} 66... Qh1 {[%clk 0:00:13]} 67. Ng4 {[%clk 0:00:46.4]} 67...
Qb1 {[%clk 0:00:04.8]} 68. Nh6+ {[%clk 0:00:46.4]} 68... Kh7 {[%clk 0:00:05.2]}
69. Qf7+ {[%clk 0:00:47]} 69... Kh8 {[%clk 0:00:06.5]} 70. Qg8# {[%clk
0:00:48.2]} 1-0

[Event "*** Titled Tuesday 3|2 Blitz"]
[Site "Chess.com"]
[Date "2015.10.06"]
[Round "2"]
[White "Imre91"]
[Black "GGuseinov"]
[Result "1-0"]
[WhiteElo "2585"]
[BlackElo "2475"]
[TimeControl "180+2"]
[EndTime "11:23:04 PDT"]
[Termination "Imre91 won by checkmate"]

1. d4 {[%clk 0:03:01.9]} 1... Nf6 {[%clk 0:03:00.4]} 2. g3 {[%clk 0:03:02.8]}
2... g6 {[%clk 0:03:01.5]} 3. Bg2 {[%clk 0:03:04.3]} 3... Bg7 {[%clk 0:03:02.7]}
4. Nf3 {[%clk 0:03:05.8]} 4... O-O {[%clk 0:03:03.7]} 5. O-O {[%clk 0:03:07.4]}
5... d6 {[%clk 0:03:03.4]} 6. c4 {[%clk 0:03:08.3]} 6... Nbd7 {[%clk 0:03:02.7]}
7. Nc3 {[%clk 0:03:09.3]} 7... e5 {[%clk 0:03:03.9]} 8. Qc2 {[%clk 0:03:10.4]}
8... Re8 {[%clk 0:03:03.3]} 9. Rd1 {[%clk 0:03:10.3]} 9... exd4 {[%clk
0:02:58.6]} 10. Nxd4 {[%clk 0:03:09.7]} 10... Nc5 {[%clk 0:02:58.7]} 11. b3
{[%clk 0:03:10.2]} 11... h5 {[%clk 0:02:48.3]} 12. Bg5 {[%clk 0:03:08.2]} 12...
c6 {[%clk 0:02:33.9]} 13. Rd2 {[%clk 0:02:50]} 13... Qe7 {[%clk 0:02:16.7]} 14.
Rad1 {[%clk 0:02:48.1]} 14... a5 {[%clk 0:01:50.3]} 15. h4 {[%clk 0:02:36.9]}
15... Bg4 {[%clk 0:01:44.8]} 16. Nf3 {[%clk 0:02:27.9]} 16... Rad8 {[%clk
0:01:36.1]} 17. Nh2 {[%clk 0:02:26.9]} 17... Bf5 {[%clk 0:01:26]} 18. Qc1 {[%clk
0:02:27.7]} 18... Bc8 {[%clk 0:00:58.3]} 19. Nf3 {[%clk 0:02:25.5]} 19... Ne6
{[%clk 0:00:52.3]} 20. Be3 {[%clk 0:02:24.4]} 20... Nc5 {[%clk 0:00:50.8]} 21.
Ng5 {[%clk 0:02:24.6]} 21... Ng4 {[%clk 0:00:46.4]} 22. Bf4 {[%clk 0:02:25.6]}
22... Qf6 {[%clk 0:00:33.8]} 23. Nge4 {[%clk 0:02:20.3]} 23... Nxe4 {[%clk
0:00:29.2]} 24. Nxe4 {[%clk 0:02:22.2]} 24... Qf5 {[%clk 0:00:14.4]} 25. Nxd6
{[%clk 0:02:21.3]} 25... Rxd6 {[%clk 0:00:15.5]} 26. Rxd6 {[%clk 0:02:22.9]}
26... Rxe2 {[%clk 0:00:14.7]} 27. R6d2 {[%clk 0:02:21.5]} 27... Re8 {[%clk
0:00:11]} 28. Rd8 {[%clk 0:02:21.7]} 28... Rxd8 {[%clk 0:00:10.5]} 29. Rxd8+
{[%clk 0:02:23.6]} 29... Kh7 {[%clk 0:00:12.4]} 30. Rd1 {[%clk 0:02:20.6]} 30...
Be6 {[%clk 0:00:13]} 31. Qd2 {[%clk 0:02:21.3]} 31... a4 {[%clk 0:00:13.5]} 32.
Re1 {[%clk 0:02:18.3]} 32... axb3 {[%clk 0:00:14.4]} 33. axb3 {[%clk 0:02:20.2]}
33... b5 {[%clk 0:00:16]} 34. Bxc6 {[%clk 0:02:16.5]} 34... bxc4 {[%clk
0:00:16.5]} 35. bxc4 {[%clk 0:02:18.4]} 35... Bxc4 {[%clk 0:00:17.6]} 36. Be4
{[%clk 0:02:19.7]} 36... Qc5 {[%clk 0:00:18.7]} 37. Be3 {[%clk 0:02:19.6]} 37...
Qa3 {[%clk 0:00:15.2]} 38. Bd4 {[%clk 0:02:18.8]} 38... Bh6 {[%clk 0:00:12.3]}
39. Qb2 {[%clk 0:02:15.9]} 39... Qa5 {[%clk 0:00:11.7]} 40. Qc3 {[%clk
0:02:16.4]} 40... Qxc3 {[%clk 0:00:09.8]} 41. Bxc3 {[%clk 0:02:15.7]} 41... Be6
{[%clk 0:00:11.7]} 42. Rd1 {[%clk 0:02:14]} 42... Bf8 {[%clk 0:00:09.6]} 43. Bd4
{[%clk 0:02:12.3]} 43... Bb3 {[%clk 0:00:09.4]} 44. Rb1 {[%clk 0:02:12.1]} 44...
Be6 {[%clk 0:00:10.9]} 45. Rb5 {[%clk 0:02:12.5]} 45... Bg7 {[%clk 0:00:11]} 46.
Bxg7 {[%clk 0:02:09.3]} 46... Kxg7 {[%clk 0:00:12.3]} 47. Bd5 {[%clk 0:02:10.2]}
47... Bf5 {[%clk 0:00:10.5]} 48. Rb7 {[%clk 0:02:10]} 48... Nh6 {[%clk
0:00:11.5]} 49. f3 {[%clk 0:02:09.8]} 49... Kf6 {[%clk 0:00:12.7]} 50. Kf2
{[%clk 0:02:10.9]} 50... Be6 {[%clk 0:00:13]} 51. Bxe6 {[%clk 0:02:12]} 51...
Kxe6 {[%clk 0:00:13.7]} 52. Rb6+ {[%clk 0:02:13.6]} 52... Ke7 {[%clk 0:00:14.1]}
53. Ke3 {[%clk 0:02:13.9]} 53... Nf5+ {[%clk 0:00:15]} 54. Kf4 {[%clk
0:02:15.4]} 54... f6 {[%clk 0:00:16.6]} 55. Rb7+ {[%clk 0:02:15.6]} 55... Ke6
{[%clk 0:00:17.1]} 56. Ra7 {[%clk 0:02:15]} 56... Nd4 {[%clk 0:00:17.2]} 57. g4
{[%clk 0:02:13.5]} 57... hxg4 {[%clk 0:00:17.5]} 58. fxg4 {[%clk 0:02:15.4]}
58... Ne2+ {[%clk 0:00:18.7]} 59. Ke3 {[%clk 0:02:16]} 59... Nc3 {[%clk
0:00:19.9]} 60. Kf3 {[%clk 0:02:13.7]} 60... f5 {[%clk 0:00:19.3]} 61. Ra6+
{[%clk 0:02:13.3]} 61... Kf7 {[%clk 0:00:20.4]} 62. gxf5 {[%clk 0:02:14.5]}
62... gxf5 {[%clk 0:00:22.3]} 63. Kf4 {[%clk 0:02:15.4]} 63... Ne2+ {[%clk
0:00:21.5]} 64. Kxf5 {[%clk 0:02:15.9]} 64... Nd4+ {[%clk 0:00:22.4]} 65. Kg4
{[%clk 0:02:17.1]} 65... Ne6 {[%clk 0:00:22]} 66. h5 {[%clk 0:02:18.2]} 66...
Nc5 {[%clk 0:00:23.3]} 67. Rb6 {[%clk 0:02:17]} 67... Nd3 {[%clk 0:00:22.9]} 68.
Kf5 {[%clk 0:02:17.1]} 68... Kg7 {[%clk 0:00:20.3]} 69. Rc6 {[%clk 0:02:16.5]}
69... Nb4 {[%clk 0:00:19.7]} 70. Rc5 {[%clk 0:02:17.5]} 70... Nd3 {[%clk
0:00:19.9]} 71. Rc7+ {[%clk 0:02:10.2]} 71... Kh6 {[%clk 0:00:18.8]} 72. Rc6+
{[%clk 0:02:03.3]} 72... Kh7 {[%clk 0:00:08.6]} 73. Kg5 {[%clk 0:02:02.4]} 73...
Ne5 {[%clk 0:00:08.1]} 74. Rc7+ {[%clk 0:02:03.1]} 74... Kh8 {[%clk 0:00:09.5]}
75. Rb7 {[%clk 0:02:04]} 75... Kg8 {[%clk 0:00:07.5]} 76. Kf5 {[%clk 0:02:04.4]}
76... Nc4 {[%clk 0:00:05.7]} 77. Kf6 {[%clk 0:01:59.5]} 77... Kh8 {[%clk
0:00:05.7]} 78. Re7 {[%clk 0:01:56.9]} 78... Nd6 {[%clk 0:00:06.6]} 79. Kg6
{[%clk 0:01:56.3]} 79... Kg8 {[%clk 0:00:08.2]} 80. Re6 {[%clk 0:01:57.4]} 80...
Nf7 {[%clk 0:00:07.7]} 81. Re8# {[%clk 0:01:58.2]} 1-0